[Event "AUT 2nd BL Ost 2021-22"]
[Site "Austria"]
[Date "2022.04.03"]
[Round "10.1"]
[White "Loeffler, Stefan"]
[Black "Baumegger, Siegfried"]
[Result "0-1"]
[ECO "E11"]
[WhiteElo "2334"]
[BlackElo "2464"]
[Annotator "ChessBase"]
[PlyCount "57"]
[EventDate "2022.04.01"]
[EventType "team-tourn"]
[EventCountry "AUT"]
[SourceTitle "playchess.com"]
[Source "ChessBase"]
[SourceQuality "1"]
[TimeControl "40/5400+30:1800+30"]

1. d4 {[%emt 0:00:01]} Nf6 {[%emt 0:00:47]} 2. c4 {[%emt 0:00:35]} e6 {[%emt 0:00:37]} 3. Nf3 {[%emt 0:00:44]} Bb4+ {[%emt 0:00:40]} 4. Bd2 {[%emt 0:00:24]} a5 {[%emt 0:00:54]} 5. Qc2 {[%emt 0:06:07]} d6 {[%emt 0:04:48]} 6. g4 {[%emt 0:06:24]} Nc6 {[%emt 0:09:18]} 7. g5 {[%emt 0:03:57]} Nd7 {[%emt 0:02:19]} 8. Nc3 {[%emt 0:11:23]} O-O {[%emt 0:11:51]} 9. O-O-O {[%emt 0:09:43]} e5 {[%emt 0:02:08]} 10. e3 {[%emt 0:12:20]} Re8 {[%emt 0:24:27]} 11. Rg1 {[%emt 0:01:59]} Bxc3 {[%emt 0:13:12]} 12. Bxc3 {[%emt 0:00:19]} Qe7 {[%emt 0:00:30]} 13. a3 {[%emt 0:05:53]} Nf8 {[%emt 0:06:28]} 14. Rg3 {[%emt 0:05:37]} g6 {[%emt 0:11:18]} 15. dxe5 {[%emt 0:02:25]} dxe5 {[%emt 0:00:13]} 16. Rd5 {[%emt 0:00:14]} Be6 {[%emt 0:01:54]} 17. Rb5 {[%emt 0:00:48]} Nd7 {[%emt 0:01:33]} 18. Qe4 {[%emt 0:15:34]} Nc5 {[%emt 0:01:39]} 19. Qh4 {[%emt 0:00:23]} Bf5 {[%emt 0:00:22]} 20. Bh3 {[%emt 0:02:11]} Nd3+ {[%emt 0:04:34]} 21. Kd2 {[%emt 0:00:06]} Rad8 {[%emt 0:00:30]} 22. Bxf5 {[%emt 0:01:36]} gxf5 {[%emt 0:00:07]} 23. Rd5 {[%emt 0:04:17]} Nxf2 {[%emt 0:00:05]} 24. Ke2 {[%emt 0:00:57]} f4 {[%emt 0:00:07]} 25. Rg1 {[%emt 0:03:01]} Ne4 {[%emt 0:00:43]} 26. Bxe5 {[%emt 0:00:18]} Rxd5 {[%emt 0:00:08]} 27. exf4 {[%emt 0:03:32]} Nxe5 {[%emt 0:00:38]} 28. fxe5 {[%emt 0:00:19]} Rxe5 {[%emt 0:00:13]} 29. Ke1 {[%emt 0:00:00]} 0-1

[Event "AUT 2nd BL Ost 2021-22"]
[Site "Austria"]
[Date "2022.04.03"]
[Round "10.2"]
[White "Sadilek, Peter"]
[Black "Ganaus, Hannes"]
[Result "0-1"]
[ECO "D30"]
[WhiteElo "2368"]
[BlackElo "2253"]
[Annotator "ChessBase"]
[PlyCount "62"]
[EventDate "2022.04.01"]
[EventType "team-tourn"]
[EventCountry "AUT"]
[SourceTitle "playchess.com"]
[Source "ChessBase"]
[SourceQuality "1"]
[TimeControl "40/5400+30:1800+30"]

1. d4 {[%emt 0:00:36]} d5 {[%emt 0:00:08]} 2. c4 {[%emt 0:00:47]} e6 {[%emt 0:00:06]} 3. Nf3 {[%emt 0:01:13]} a6 {[%emt 0:03:54]} 4. g3 {[%emt 0:02:40]} dxc4 {[%emt 0:03:09]} 5. Bg2 {[%emt 0:00:08]} c5 {[%emt 0:15:03]} 6. O-O {[%emt 0:10:24]} cxd4 {[%emt 0:07:45]} 7. Nxd4 {[%emt 0:02:41]} e5 {[%emt 0:10:46]} 8. Nc2 {[%emt 0:02:21]} Qxd1 {[%emt 0:05:01]} 9. Rxd1 {[%emt 0:00:03]} Nc6 {[%emt 0:00:51]} 10. Nc3 {[%emt 0:06:36]} Be6 {[%emt 0:09:09]} 11. Ne3 {[%emt 0:21:27]} Nf6 {[%emt 0:00:53]} 12. Ned5 {[%emt 0:05:19]} Nxd5 {[%emt 0:05:19]} 13. Nxd5 {[%emt 0:02:33]} O-O-O {[%emt 0:05:27]} 14. Nb6+ {[%emt 0:04:40]} Kc7 {[%emt 0:00:02]} 15. Rxd8 {[%emt 0:00:19]} Kxd8 {[%emt 0:00:04]} 16. Bxc6 {[%emt 0:07:52]} bxc6 {[%emt 0:00:02]} 17. Be3 {[%emt 0:00:22]} Bb4 {[%emt 0:07:48]} 18. Rc1 {[%emt 0:04:24]} c3 {[%emt 0:00:08]} 19. bxc3 {[%emt 0:00:08]} Ba5 {[%emt 0:00:41]} 20. Na4 {[%emt 0:04:30]} Kc7 {[%emt 0:11:16]} 21. Nc5 {[%emt 0:02:53]} Bc4 {[%emt 0:00:19]} 22. Rd1 {[%emt 0:15:27]} Rb8 {[%emt 0:01:19]} 23. f4 {[%emt 0:01:53]} Rb2 {[%emt 0:03:36]} 24. Rd7+ {[%emt 0:01:04]} Kc8 {[%emt 0:00:21]} 25. Rd6 {[%emt 0:01:16]} Bc7 {[%emt 0:03:25]} 26. Rxc6 {[%emt 0:00:20]} Bb5 {[%emt 0:00:08]} 27. Rxc7+ {[%emt 0:00:37]} Kxc7 {[%emt 0:00:06]} 28. fxe5 {[%emt 0:00:22]} Rxe2 {[%emt 0:00:28]} 29. Bd4 {[%emt 0:01:05]} Rxa2 {[%emt 0:00:28]} 30. e6 {[%emt 0:00:09]} f6 {[%emt 0:03:53]} 31. Be3 {[%emt 0:00:01]} Kd6 {[%emt 0:00:43]} 0-1

[Event "AUT 2nd BL Ost 2021-22"]
[Site "Austria"]
[Date "2022.04.03"]
[Round "10.3"]
[White "Batyte, Daiva"]
[Black "Kaphle, Sebastian"]
[Result "0-1"]
[ECO "E05"]
[WhiteElo "2105"]
[BlackElo "2345"]
[Annotator "ChessBase"]
[PlyCount "66"]
[EventDate "2022.04.01"]
[EventType "team-tourn"]
[EventCountry "AUT"]
[SourceTitle "playchess.com"]
[Source "ChessBase"]
[SourceQuality "1"]
[TimeControl "40/5400+30:1800+30"]

1. c4 {[%emt 0:00:03]} Nf6 {[%emt 0:00:29]} 2. Nf3 {[%emt 0:00:24]} e6 {[%emt 0:00:43]} 3. g3 {[%emt 0:02:36]} Be7 {[%emt 0:01:37]} 4. Bg2 {[%emt 0:00:17]} O-O {[%emt 0:00:40]} 5. d4 {[%emt 0:01:30]} d5 {[%emt 0:00:51]} 6. Nbd2 {[%emt 0:00:41]} dxc4 {[%emt 0:10:10]} 7. Nxc4 {[%emt 0:01:52]} c5 {[%emt 0:02:07]} 8. O-O {[%emt 0:01:06]} Nc6 {[%emt 0:10:28]} 9. dxc5 {[%emt 0:02:25]} Bxc5 {[%emt 0:03:10]} 10. Be3 {[%emt 0:03:23]} Bxe3 {[%emt 0:03:31]} 11. Nxe3 {[%emt 0:00:51]} Qe7 {[%emt 0:02:14]} 12. Nc4 {[%emt 0:05:50]} Rd8 {[%emt 0:07:41]} 13. Qc2 {[%emt 0:02:22]} e5 {[%emt 0:02:30]} 14. Rad1 {[%emt 0:01:22]} Bg4 {[%emt 0:03:32]} 15. Rxd8+ {[%emt 0:20:53]} Rxd8 {[%emt 0:01:57]} 16. e3 {[%emt 0:00:26]} e4 {[%emt 0:16:35]} 17. Ng5 {[%emt 0:11:50]} b5 {[%emt 0:05:15]} 18. Na3 {[%emt 0:03:21]} Nb4 {[%emt 0:01:04]} 19. Qb1 {[%emt 0:02:03]} Be2 {[%emt 0:03:14]} 20. Re1 {[%emt 0:04:13]} Bd3 {[%emt 0:00:23]} 21. Qd1 {[%emt 0:05:04]} h6 {[%emt 0:03:15]} 22. Nh3 {[%emt 0:00:19]} g5 {[%emt 0:02:33]} 23. Qa1 {[%emt 0:02:46]} Ng4 {[%emt 0:04:13]} 24. b3 {[%emt 0:03:19]} Ne5 {[%emt 0:01:04]} 25. Rd1 {[%emt 0:01:41]} Nf3+ {[%emt 0:04:20]} 26. Kh1 {[%emt 0:00:17]} Be2 {[%emt 0:01:53]} 27. Rxd8+ {[%emt 0:00:49]} Qxd8 {[%emt 0:00:05]} 28. Ng1 {[%emt 0:00:19]} Nd3 {[%emt 0:02:31]} 29. Nxf3 {[%emt 0:04:14]} exf3 {[%emt 0:00:20]} 30. Bf1 {[%emt 0:00:22]} Nxf2+ {[%emt 0:00:17]} 31. Kg1 {[%emt 0:00:05]} Qd2 {[%emt 0:02:59]} 32. Kxf2 {[%emt 0:04:00]} Bxf1+ {[%emt 0:00:11]} 33. Kxf3 {[%emt 0:00:08]} Bg2+ {[%emt 0:00:06]} 0-1

[Event "AUT 2nd BL Ost 2021-22"]
[Site "Austria"]
[Date "2022.04.03"]
[Round "10.4"]
[White "Sadilek, Maximilian"]
[Black "Lammer, Stefan"]
[Result "1-0"]
[ECO "E14"]
[WhiteElo "2263"]
[BlackElo "2131"]
[Annotator "ChessBase"]
[PlyCount "83"]
[EventDate "2022.04.01"]
[EventType "team-tourn"]
[EventCountry "AUT"]
[SourceTitle "playchess.com"]
[Source "ChessBase"]
[SourceQuality "1"]
[TimeControl "40/5400+30:1800+30"]

1. d4 {[%emt 0:00:18]} Nf6 {[%emt 0:00:13]} 2. Nf3 {[%emt 0:01:00]} e6 {[%emt 0:00:32]} 3. e3 {[%emt 0:01:49]} c5 {[%emt 0:00:51]} 4. Nbd2 {[%emt 0:03:28]} b6 {[%emt 0:01:28]} 5. Bd3 {[%emt 0:00:32]} Bb7 {[%emt 0:00:51]} 6. O-O {[%emt 0:00:12]} Be7 {[%emt 0:00:23]} 7. b3 {[%emt 0:06:47]} d6 {[%emt 0:05:06]} 8. Bb2 {[%emt 0:00:26]} Nbd7 {[%emt 0:00:31]} 9. c4 {[%emt 0:01:51]} Qc7 {[%emt 0:01:13]} 10. Qe2 {[%emt 0:02:44]} O-O {[%emt 0:00:45]} 11. e4 {[%emt 0:03:00]} cxd4 {[%emt 0:05:36]} 12. Nxd4 {[%emt 0:00:30]} Rfe8 {[%emt 0:02:35]} 13. f4 {[%emt 0:06:23]} Bf8 {[%emt 0:07:23]} 14. Nb5 {[%emt 0:23:46]} Qc6 {[%emt 0:02:13]} 15. e5 {[%emt 0:01:06]} Nc5 {[%emt 0:02:00]} 16. Bc2 {[%emt 0:05:02]} Nfd7 {[%emt 0:06:11]} 17. b4 {[%emt 0:10:28]} Na6 {[%emt 0:01:09]} 18. a3 {[%emt 0:06:57]} d5 {[%emt 0:01:46]} 19. Nd4 {[%emt 0:00:49]} Qc7 {[%emt 0:01:10]} 20. cxd5 {[%emt 0:00:30]} exd5 {[%emt 0:02:43]} 21. Bd3 {[%emt 0:00:20]} Nab8 {[%emt 0:03:46]} 22. Rac1 {[%emt 0:00:14]} Qd8 {[%emt 0:00:42]} 23. N2f3 {[%emt 0:03:55]} Nf6 {[%emt 0:02:19]} 24. Qc2 {[%emt 0:01:17]} Ne4 {[%emt 0:00:42]} 25. Nd2 {[%emt 0:01:41]} a5 {[%emt 0:01:46]} 26. Nxe4 {[%emt 0:00:30]} dxe4 {[%emt 0:00:08]} 27. Bxe4 {[%emt 0:00:08]} Bxe4 {[%emt 0:01:06]} 28. Qxe4 {[%emt 0:00:02]} Nd7 {[%emt 0:00:56]} 29. Nc6 {[%emt 0:08:44]} Qh4 {[%emt 0:00:16]} 30. Qd5 {[%emt 0:02:28]} Qg4 {[%emt 0:04:04]} 31. f5 {[%emt 0:01:01]} axb4 {[%emt 0:02:18]} 32. axb4 {[%emt 0:00:50]} Nb8 {[%emt 0:05:52]} 33. h3 {[%emt 0:01:10]} Qe2 {[%emt 0:02:44]} 34. Rf2 {[%emt 0:00:55]} Qa6 {[%emt 0:02:48]} 35. e6 {[%emt 0:00:17]} fxe6 {[%emt 0:03:10]} 36. fxe6 {[%emt 0:00:12]} Qa2 {[%emt 0:01:22]} 37. Rxf8+ {[%emt 0:04:07]} Rxf8 {[%emt 0:00:33]} 38. Ne7+ {[%emt 0:00:08]} Kh8 {[%emt 0:00:13]} 39. Bxg7+ {[%emt 0:00:13]} Kxg7 {[%emt 0:00:11]} 40. Qg5+ {[%emt 0:00:05]} Kh8 {[%emt 0:00:28]} 41. Qe5+ {[%emt 0:30:06]} Rf6 {[%emt 0:30:06]} 42. Qxf6# {[%emt 0:00:33]} 1-0

[Event "AUT 2nd BL Ost 2021-22"]
[Site "Austria"]
[Date "2022.04.03"]
[Round "10.5"]
[White "Schweitzer, Werner"]
[Black "Cu Hor, Winston Darwin"]
[Result "0-1"]
[ECO "B23"]
[WhiteElo "2060"]
[BlackElo "2337"]
[Annotator "ChessBase"]
[PlyCount "82"]
[EventDate "2022.04.01"]
[EventType "team-tourn"]
[EventCountry "AUT"]
[SourceTitle "playchess.com"]
[Source "ChessBase"]
[SourceQuality "1"]
[TimeControl "40/5400+30:1800+30"]

1. e4 {[%emt 0:00:06]} c5 {[%emt 0:00:06]} 2. Nc3 {[%emt 0:00:06]} a6 {[%emt 0:01:55]} 3. f4 {[%emt 0:01:24]} e6 {[%emt 0:01:36]} 4. g3 {[%emt 0:00:08]} d5 {[%emt 0:01:05]} 5. exd5 {[%emt 0:02:12]} exd5 {[%emt 0:00:09]} 6. Bg2 {[%emt 0:00:31]} Nf6 {[%emt 0:00:37]} 7. Nf3 {[%emt 0:01:08]} d4 {[%emt 0:05:08]} 8. Qe2+ {[%emt 0:01:51]} Be7 {[%emt 0:02:18]} 9. Ne4 {[%emt 0:00:57]} Nxe4 {[%emt 0:03:09]} 10. Qxe4 {[%emt 0:00:03]} Nc6 {[%emt 0:00:28]} 11. O-O {[%emt 0:03:46]} O-O {[%emt 0:00:57]} 12. d3 {[%emt 0:05:43]} Re8 {[%emt 0:01:02]} 13. Qe2 {[%emt 0:06:00]} Bf6 {[%emt 0:15:05]} 14. Qf2 {[%emt 0:00:32]} c4 {[%emt 0:00:43]} 15. Bd2 {[%emt 0:08:16]} cxd3 {[%emt 0:01:53]} 16. cxd3 {[%emt 0:00:22]} Bf5 {[%emt 0:03:29]} 17. Ne5 {[%emt 0:01:24]} Nxe5 {[%emt 0:03:27]} 18. fxe5 {[%emt 0:00:07]} Rxe5 {[%emt 0:00:15]} 19. Bf4 {[%emt 0:08:35]} Rb5 {[%emt 0:04:37]} 20. Rad1 {[%emt 0:08:10]} Qa5 {[%emt 0:02:34]} 21. b3 {[%emt 0:03:07]} Qb6 {[%emt 0:03:43]} 22. Qf3 {[%emt 0:04:32]} Qe6 {[%emt 0:01:16]} 23. Rc1 {[%emt 0:01:18]} Re8 {[%emt 0:02:52]} 24. Rc7 {[%emt 0:02:52]} h5 {[%emt 0:14:13]} 25. h4 {[%emt 0:04:50]} b6 {[%emt 0:07:07]} 26. Rfc1 {[%emt 0:02:11]} Qe2 {[%emt 0:03:50]} 27. Qb7 {[%emt 0:04:05]} Qxd3 {[%emt 0:05:16]} 28. Rxf7 {[%emt 0:02:08]} Rc5 {[%emt 0:00:52]} 29. Rc7 {[%emt 0:04:09]} Re2 {[%emt 0:05:04]} 30. R7xc5 {[%emt 0:06:09]} bxc5 {[%emt 0:00:06]} 31. Bd5+ {[%emt 0:00:31]} Be6 {[%emt 0:04:38]} 32. Qc8+ {[%emt 0:01:04]} Kf7 {[%emt 0:00:16]} 33. Qd7+ {[%emt 0:00:53]} Be7 {[%emt 0:00:25]} 34. Rf1 {[%emt 0:01:53]} Bxd5 {[%emt 0:02:22]} 35. Qxd5+ {[%emt 0:00:17]} Kg6 {[%emt 0:01:47]} 36. g4 {[%emt 0:06:48]} hxg4 {[%emt 0:00:41]} 37. h5+ {[%emt 0:01:14]} Kh7 {[%emt 0:00:46]} 38. Qd7 {[%emt 0:03:14]} g3 {[%emt 0:01:42]} 39. Qg4 {[%emt 0:00:47]} g2 {[%emt 0:00:33]} 40. Rf2 {[%emt 0:03:37]} Rxf2 {[%emt 0:00:55]} 41. Kxf2 {[%emt 0:30:04]} Qf1+ {[%emt 0:30:11]} 0-1

[Event "AUT 2nd BL Ost 2021-22"]
[Site "Austria"]
[Date "2022.04.03"]
[Round "10.6"]
[White "Leitner, Gerald"]
[Black "Mittermayr, Gerhard"]
[Result "1-0"]
[ECO "A94"]
[WhiteElo "2170"]
[BlackElo "2079"]
[Annotator "ChessBase"]
[PlyCount "87"]
[EventDate "2022.04.01"]
[EventType "team-tourn"]
[EventCountry "AUT"]
[SourceTitle "playchess.com"]
[Source "ChessBase"]
[SourceQuality "1"]
[TimeControl "40/5400+30:1800+30"]

1. Nf3 {[%emt 0:00:06]} f5 {[%emt 0:00:39]} 2. d4 {[%emt 0:00:13]} Nf6 {[%emt 0:00:07]} 3. g3 {[%emt 0:00:04]} e6 {[%emt 0:00:11]} 4. Bg2 {[%emt 0:00:01]} d5 {[%emt 0:00:09]} 5. O-O {[%emt 0:00:09]} Bd6 {[%emt 0:00:46]} 6. c4 {[%emt 0:00:41]} c6 {[%emt 0:00:12]} 7. b3 {[%emt 0:01:02]} O-O {[%emt 0:00:27]} 8. Ba3 {[%emt 0:00:36]} Bxa3 {[%emt 0:01:15]} 9. Nxa3 {[%emt 0:00:02]} Bd7 {[%emt 0:04:42]} 10. b4 {[%emt 0:02:30]} Qe7 {[%emt 0:01:32]} 11. Qb3 {[%emt 0:00:27]} Ne4 {[%emt 0:01:43]} 12. Rad1 {[%emt 0:06:56]} a6 {[%emt 0:10:46]} 13. Ne5 {[%emt 0:01:51]} b5 {[%emt 0:05:19]} 14. c5 {[%emt 0:06:28]} a5 {[%emt 0:15:23]} 15. Nc2 {[%emt 0:03:34]} axb4 {[%emt 0:05:03]} 16. Nxb4 {[%emt 0:00:13]} Ra4 {[%emt 0:01:20]} 17. f3 {[%emt 0:17:46]} Nxc5 {[%emt 0:04:25]} 18. Qb2 {[%emt 0:12:02]} Nca6 {[%emt 0:06:33]} 19. Nbd3 {[%emt 0:03:12]} Be8 {[%emt 0:08:16]} 20. Rd2 {[%emt 0:00:49]} Qa7 {[%emt 0:01:11]} 21. Nf4 {[%emt 0:07:31]} Nc7 {[%emt 0:08:24]} 22. Rc1 {[%emt 0:02:18]} g5 {[%emt 0:01:33]} 23. Nh3 {[%emt 0:00:09]} h6 {[%emt 0:00:21]} 24. Nf2 {[%emt 0:02:17]} Na8 {[%emt 0:05:06]} 25. e3 {[%emt 0:06:14]} f4 {[%emt 0:06:42]} 26. exf4 {[%emt 0:01:41]} gxf4 {[%emt 0:00:09]} 27. Bh3 {[%emt 0:01:06]} Nc7 {[%emt 0:02:51]} 28. Kh1 {[%emt 0:03:17]} fxg3 {[%emt 0:01:05]} 29. hxg3 {[%emt 0:00:04]} Qa5 {[%emt 0:00:53]} 30. Rcd1 {[%emt 0:08:34]} Qb4 {[%emt 0:00:34]} 31. Qc2 {[%emt 0:01:41]} Ra3 {[%emt 0:00:49]} 32. Rd3 {[%emt 0:00:34]} Rxd3 {[%emt 0:00:30]} 33. Qxd3 {[%emt 0:00:43]} Qe7 {[%emt 0:01:27]} 34. Qe3 {[%emt 0:02:49]} Kg7 {[%emt 0:01:42]} 35. Nfg4 {[%emt 0:01:24]} Rh8 {[%emt 0:00:49]} 36. Bf1 {[%emt 0:00:49]} Nba6 {[%emt 0:02:33]} 37. Bd3 {[%emt 0:00:17]} c5 {[%emt 0:00:16]} 38. Bb1 {[%emt 0:02:52]} cxd4 {[%emt 0:01:16]} 39. Qxd4 {[%emt 0:00:46]} Qc5 {[%emt 0:00:24]} 40. Qa1 {[%emt 0:03:13]} d4 {[%emt 0:00:37]} 41. Rxd4 {[%emt 0:05:45]} b4 {[%emt 0:29:31]} 42. Rc4 {[%emt 0:07:47]} Qd5 {[%emt 0:01:56]} 43. Be4 {[%emt 0:00:18]} Qd2 {[%emt 0:00:55]} 44. Ng6+ {[%emt 0:03:45]} 1-0

[Event "AUT 2nd BL Ost 2021-22"]
[Site "Austria"]
[Date "2022.04.03"]
[Round "10.7"]
[White "Stohl, Igor"]
[Black "Lizak, Peter"]
[Result "1/2-1/2"]
[ECO "E90"]
[WhiteElo "2459"]
[BlackElo "2403"]
[Annotator "ChessBase"]
[PlyCount "76"]
[EventDate "2022.04.01"]
[EventType "team-tourn"]
[EventCountry "AUT"]
[SourceTitle "playchess.com"]
[Source "ChessBase"]
[SourceQuality "1"]
[TimeControl "40/5400+30:1800+30"]

1. d4 {[%emt 0:00:03]} Nf6 {[%emt 0:00:06]} 2. c4 {[%emt 0:00:15]} c5 {[%emt 0:00:06]} 3. d5 {[%emt 0:00:11]} g6 {[%emt 0:00:09]} 4. Nc3 {[%emt 0:00:18]} Bg7 {[%emt 0:00:07]} 5. e4 {[%emt 0:00:28]} d6 {[%emt 0:00:22]} 6. Nf3 {[%emt 0:00:46]} O-O {[%emt 0:00:18]} 7. h3 {[%emt 0:01:00]} e6 {[%emt 0:00:10]} 8. Bd3 {[%emt 0:00:19]} Nbd7 {[%emt 0:06:11]} 9. Bg5 {[%emt 0:05:41]} exd5 {[%emt 0:11:20]} 10. cxd5 {[%emt 0:01:27]} h6 {[%emt 0:15:41]} 11. Bf4 {[%emt 0:15:40]} Qe7 {[%emt 0:00:23]} 12. O-O {[%emt 0:01:18]} g5 {[%emt 0:11:46]} 13. Bh2 {[%emt 0:00:56]} g4 {[%emt 0:03:40]} 14. hxg4 {[%emt 0:01:08]} Nxg4 {[%emt 0:00:44]} 15. Bg3 {[%emt 0:00:27]} Nde5 {[%emt 0:05:04]} 16. Be2 {[%emt 0:05:30]} Nxf3+ {[%emt 0:07:12]} 17. gxf3 {[%emt 0:07:03]} Nf6 {[%emt 0:02:35]} 18. Bh4 {[%emt 0:03:39]} Qd7 {[%emt 0:09:28]} 19. f4 {[%emt 0:20:59]} Qh3 {[%emt 0:05:25]} 20. Bxf6 {[%emt 0:01:41]} Bxf6 {[%emt 0:00:36]} 21. Qd3 {[%emt 0:00:13]} Qxd3 {[%emt 0:06:39]} 22. Bxd3 {[%emt 0:00:02]} a6 {[%emt 0:00:23]} 23. Rfe1 {[%emt 0:05:50]} Bd4 {[%emt 0:06:05]} 24. Ne2 {[%emt 0:03:50]} Bxb2 {[%emt 0:02:13]} 25. Rab1 {[%emt 0:00:07]} Ba3 {[%emt 0:00:09]} 26. e5 {[%emt 0:03:06]} b5 {[%emt 0:01:16]} 27. Ng3 {[%emt 0:02:14]} Bb4 {[%emt 0:00:35]} 28. Re2 {[%emt 0:02:14]} Bg4 {[%emt 0:01:50]} 29. Rc2 {[%emt 0:00:52]} Kh8 {[%emt 0:01:09]} 30. Ne4 {[%emt 0:02:57]} Bf3 {[%emt 0:00:45]} 31. Nxd6 {[%emt 0:01:42]} Rg8+ {[%emt 0:02:00]} 32. Kh2 {[%emt 0:01:14]} Bxd5 {[%emt 0:00:36]} 33. f3 {[%emt 0:00:51]} Bxf3 {[%emt 0:01:16]} 34. Nxf7+ {[%emt 0:00:47]} Kg7 {[%emt 0:00:01]} 35. Nd6 {[%emt 0:00:17]} Kh8 {[%emt 0:00:23]} 36. Nf7+ {[%emt 0:02:20]} Kg7 {[%emt 0:00:01]} 37. Nd6 {[%emt 0:00:01]} Kh8 {[%emt 0:00:15]} 38. Nf7+ {[%emt 0:02:08]} Kg7 {[%emt 0:00:03]} 1/2-1/2

[Event "AUT 2nd BL Ost 2021-22"]
[Site "Austria"]
[Date "2022.04.03"]
[Round "10.8"]
[White "Videki, Sandor"]
[Black "Peyrer, Konstantin"]
[Result "1-0"]
[ECO "A29"]
[WhiteElo "2402"]
[BlackElo "2301"]
[Annotator "ChessBase"]
[PlyCount "105"]
[EventDate "2022.04.01"]
[EventType "team-tourn"]
[EventCountry "AUT"]
[SourceTitle "playchess.com"]
[Source "ChessBase"]
[SourceQuality "1"]
[TimeControl "40/5400+30:1800+30"]

1. c4 {[%emt 0:00:06]} Nf6 {[%emt 0:00:27]} 2. Nc3 {[%emt 0:00:09]} e5 {[%emt 0:01:16]} 3. g3 {[%emt 0:04:20]} d5 {[%emt 0:00:05]} 4. cxd5 {[%emt 0:00:08]} Nxd5 {[%emt 0:00:03]} 5. Bg2 {[%emt 0:00:05]} Nb6 {[%emt 0:00:04]} 6. d3 {[%emt 0:06:17]} Nc6 {[%emt 0:01:34]} 7. Nf3 {[%emt 0:04:29]} Be7 {[%emt 0:00:43]} 8. O-O {[%emt 0:01:04]} O-O {[%emt 0:00:07]} 9. Be3 {[%emt 0:00:45]} Be6 {[%emt 0:01:39]} 10. Rc1 {[%emt 0:01:42]} Qc8 {[%emt 0:11:18]} 11. a3 {[%emt 0:07:04]} Nd5 {[%emt 0:05:40]} 12. Nxe5 {[%emt 0:13:16]} Nxe3 {[%emt 0:01:20]} 13. Nxc6 {[%emt 0:00:13]} Bc5 {[%emt 0:00:07]} 14. fxe3 {[%emt 0:13:39]} Bxe3+ {[%emt 0:00:10]} 15. Kh1 {[%emt 0:00:02]} bxc6 {[%emt 0:00:05]} 16. Rb1 {[%emt 0:00:25]} Qa6 {[%emt 0:04:11]} 17. Qa4 {[%emt 0:06:55]} Qxa4 {[%emt 0:00:29]} 18. Nxa4 {[%emt 0:00:02]} Ba2 {[%emt 0:17:31]} 19. Bxc6 {[%emt 0:09:55]} Rab8 {[%emt 0:04:08]} 20. Ra1 {[%emt 0:00:26]} Bb3 {[%emt 0:00:12]} 21. Nc3 {[%emt 0:01:39]} Rfd8 {[%emt 0:01:18]} 22. Rf5 {[%emt 0:04:47]} a6 {[%emt 0:10:19]} 23. Rf3 {[%emt 0:06:40]} Bd4 {[%emt 0:00:48]} 24. Rc1 {[%emt 0:00:26]} g6 {[%emt 0:10:13]} 25. e3 {[%emt 0:06:00]} Rd6 {[%emt 0:02:43]} 26. exd4 {[%emt 0:02:21]} Rxc6 {[%emt 0:00:09]} 27. Kg1 {[%emt 0:03:32]} f5 {[%emt 0:01:52]} 28. Re1 {[%emt 0:01:00]} Rd8 {[%emt 0:03:58]} 29. Rf4 {[%emt 0:00:39]} Rcd6 {[%emt 0:01:27]} 30. Re7 {[%emt 0:01:24]} Rxd4 {[%emt 0:02:25]} 31. Rxd4 {[%emt 0:00:20]} Rxd4 {[%emt 0:00:10]} 32. Rxc7 {[%emt 0:00:08]} Rxd3 {[%emt 0:00:06]} 33. Rc6 {[%emt 0:01:52]} a5 {[%emt 0:01:58]} 34. Ra6 {[%emt 0:01:15]} a4 {[%emt 0:00:13]} 35. Nxa4 {[%emt 0:01:01]} Rd1+ {[%emt 0:00:07]} 36. Kf2 {[%emt 0:00:10]} Rd2+ {[%emt 0:00:09]} 37. Ke3 {[%emt 0:00:51]} Rxh2 {[%emt 0:00:14]} 38. Nc5 {[%emt 0:00:27]} Bc4 {[%emt 0:02:03]} 39. Rb6 {[%emt 0:02:03]} Kg7 {[%emt 0:01:52]} 40. Kd4 {[%emt 0:00:53]} Bf7 {[%emt 0:02:12]} 41. a4 {[%emt 0:02:36]} h5 {[%emt 0:03:53]} 42. a5 {[%emt 0:01:55]} Rc2 {[%emt 0:08:22]} 43. b4 {[%emt 0:03:29]} Rd2+ {[%emt 0:08:29]} 44. Ke3 {[%emt 0:06:20]} Rg2 {[%emt 0:00:56]} 45. Kf4 {[%emt 0:02:09]} Ra2 {[%emt 0:02:36]} 46. a6 {[%emt 0:01:59]} Rf2+ {[%emt 0:02:02]} 47. Ke5 {[%emt 0:02:23]} f4 {[%emt 0:08:35]} 48. gxf4 {[%emt 0:00:53]} Ra2 {[%emt 0:01:02]} 49. Rb7 {[%emt 0:01:15]} h4 {[%emt 0:00:14]} 50. Ne6+ {[%emt 0:00:52]} Kg8 {[%emt 0:03:49]} 51. Rb8+ {[%emt 0:02:31]} Kh7 {[%emt 0:00:05]} 52. Ng5+ {[%emt 0:00:14]} Kg7 {[%emt 0:00:03]} 53. Rb7 {[%emt 0:00:30]} 1-0

[Event "AUT 2nd BL Ost 2021-22"]
[Site "Austria"]
[Date "2022.04.03"]
[Round "10.9"]
[White "Steindl, Johannes"]
[Black "Neumeier, Klaus"]
[Result "1-0"]
[ECO "B45"]
[WhiteElo "2237"]
[BlackElo "2271"]
[Annotator "ChessBase"]
[PlyCount "71"]
[EventDate "2022.04.01"]
[EventType "team-tourn"]
[EventCountry "AUT"]
[SourceTitle "playchess.com"]
[Source "ChessBase"]
[SourceQuality "1"]
[TimeControl "40/5400+30:1800+30"]

1. e4 {[%emt 0:00:03]} c5 {[%emt 0:00:08]} 2. Nf3 {[%emt 0:00:04]} Nc6 {[%emt 0:00:10]} 3. d4 {[%emt 0:00:05]} cxd4 {[%emt 0:00:17]} 4. Nxd4 {[%emt 0:00:05]} e6 {[%emt 0:00:42]} 5. Nc3 {[%emt 0:00:05]} Nf6 {[%emt 0:00:18]} 6. Ndb5 {[%emt 0:00:25]} Bc5 {[%emt 0:00:29]} 7. Bf4 {[%emt 0:00:21]} O-O {[%emt 0:00:49]} 8. Bc7 {[%emt 0:01:39]} Qe7 {[%emt 0:00:22]} 9. Bd6 {[%emt 0:00:29]} Bxd6 {[%emt 0:00:20]} 10. Qxd6 {[%emt 0:00:07]} Qd8 {[%emt 0:01:41]} 11. O-O-O {[%emt 0:09:09]} Qb6 {[%emt 0:07:13]} 12. Rd2 {[%emt 0:11:24]} a6 {[%emt 0:04:37]} 13. Na3 {[%emt 0:00:13]} Qb4 {[%emt 0:08:31]} 14. Nc4 {[%emt 0:02:32]} b5 {[%emt 0:03:12]} 15. Qxb4 {[%emt 0:02:06]} Nxb4 {[%emt 0:00:07]} 16. Nd6 {[%emt 0:00:14]} Ra7 {[%emt 0:02:38]} 17. f4 {[%emt 0:06:46]} Bb7 {[%emt 0:07:19]} 18. a3 {[%emt 0:03:32]} Nc6 {[%emt 0:00:20]} 19. e5 {[%emt 0:03:29]} Nh5 {[%emt 0:01:57]} 20. g3 {[%emt 0:04:30]} f5 {[%emt 0:02:59]} 21. Be2 {[%emt 0:14:26]} g6 {[%emt 0:00:44]} 22. Rhd1 {[%emt 0:00:16]} Ba8 {[%emt 0:05:05]} 23. Ncxb5 {[%emt 0:06:53]} axb5 {[%emt 0:00:28]} 24. Nxb5 {[%emt 0:00:04]} Rb7 {[%emt 0:02:06]} 25. Rxd7 {[%emt 0:00:09]} Rxd7 {[%emt 0:07:00]} 26. Rxd7 {[%emt 0:00:05]} Rd8 {[%emt 0:11:57]} 27. Rc7 {[%emt 0:06:30]} Ng7 {[%emt 0:02:09]} 28. Nd6 {[%emt 0:00:56]} Nd4 {[%emt 0:04:09]} 29. Bc4 {[%emt 0:04:00]} Bd5 {[%emt 0:15:59]} 30. b4 {[%emt 0:10:55]} Bxc4 {[%emt 0:02:17]} 31. Rxc4 {[%emt 0:00:07]} Nf3 {[%emt 0:00:24]} 32. b5 {[%emt 0:00:49]} Rb8 {[%emt 0:03:00]} 33. b6 {[%emt 0:02:55]} Rxb6 {[%emt 0:00:12]} 34. Rc8+ {[%emt 0:00:04]} Ne8 {[%emt 0:00:06]} 35. Nxe8 {[%emt 0:00:40]} Nxh2 {[%emt 0:01:24]} 36. Nf6+ {[%emt 0:00:13]} 1-0